[Event "9th RTU Open 2019"]
[Site "Riga"]
[Date "2019.08.09"]
[Round "8.14"]
[White "Deepan Chakkravarthy J."]
[Black "Keinanen, Toivo"]
[Result "1/2-1/2"]
[ECO "E05"]
[WhiteElo "2532"]
[BlackElo "2386"]
[Annotator "ChessBase"]
[PlyCount "89"]
[EventDate "2019.08.05"]
[EventType "swiss"]
[EventCountry "LAT"]
[SourceTitle "playchess.com"]
[Source "ChessBase"]
[SourceQuality "1"]
[TimeControl "5400+30"]

1. Nf3 {[%emt 0:00:00]} d5 {[%emt 0:02:19]} 2. g3 {[%emt 0:00:00]} Nf6 {[%emt 0:02:10]} 3. Bg2 {[%emt 0:00:00]} e6 {[%emt 0:00:11]} 4. O-O {[%emt 0:00:00]} Be7 {[%emt 0:00:04]} 5. d4 {[%emt 0:00:02]} O-O {[%emt 0:00:45]} 6. c4 {[%emt 0:00:55]} dxc4 {[%emt 0:00:01]} 7. Qc2 {[%emt 0:00:01]} b5 {[%emt 0:00:25]} 8. a4 {[%emt 0:04:43]} b4 {[%emt 0:00:08]} 9. Nbd2 {[%emt 0:02:21]} Bb7 {[%emt 0:00:18]} 10. Nxc4 {[%emt 0:00:14]} c5 {[%emt 0:00:13]} 11. dxc5 {[%emt 0:12:05]} Be4 {[%emt 0:00:27]} 12. Qb3 {[%emt 0:02:31]} Nbd7 {[%emt 0:00:55]} 13. Be3 {[%emt 0:07:19]} Nd5 {[%emt 0:11:33]} 14. c6 {[%emt 0:21:27]} Nxe3 {[%emt 0:06:45]} 15. Qxe3 {[%emt 0:00:23]} Bxc6 {[%emt 0:00:14]} 16. Rfd1 {[%emt 0:00:05]} Bd5 {[%emt 0:15:55]} 17. Nfe5 {[%emt 0:01:12]} Bg5 {[%emt 0:13:38]} 18. f4 {[%emt 0:02:25]} Nxe5 {[%emt 0:01:57]} 19. Nxe5 {[%emt 0:03:26]} Bf6 {[%emt 0:00:17]} 20. Rac1 {[%emt 0:06:39]} Bxe5 {[%emt 0:04:32]} 21. fxe5 {[%emt 0:01:56]} Qd7 {[%emt 0:03:58]} 22. b3 {[%emt 0:03:59]} Rfd8 {[%emt 0:05:53]} 23. Bxd5 {[%emt 0:01:31]} exd5 {[%emt 0:00:05]} 24. Qd4 {[%emt 0:00:10]} Qe7 {[%emt 0:02:51]} 25. Rc5 {[%emt 0:00:28]} g6 {[%emt 0:02:00]} 26. Rxd5 {[%emt 0:02:27]} Rxd5 {[%emt 0:01:02]} 27. Qxd5 {[%emt 0:00:01]} Re8 {[%emt 0:01:40]} 28. Rf1 {[%emt 0:00:09]} Qe6 {[%emt 0:05:13]} 29. Qxe6 {[%emt 0:07:41]} Rxe6 {[%emt 0:00:14]} 30. Rf4 {[%emt 0:02:03]} Rxe5 {[%emt 0:01:42]} 31. Rxb4 {[%emt 0:04:27]} Rxe2 {[%emt 0:01:24]} 32. a5 {[%emt 0:00:05]} Ra2 {[%emt 0:03:14]} 33. Rb8+ {[%emt 0:00:12]} Kg7 {[%emt 0:00:05]} 34. b4 {[%emt 0:00:03]} a6 {[%emt 0:02:27]} 35. Rb6 {[%emt 0:00:02]} Rb2 {[%emt 0:00:15]} 36. g4 {[%emt 0:00:02]} h5 {[%emt 0:04:45]} 37. g5 {[%emt 0:15:01]} h4 {[%emt 0:00:40]} 38. h3 {[%emt 0:00:05]} Rb3 {[%emt 0:01:38]} 39. Kf2 {[%emt 0:00:06]} Kg8 {[%emt 0:00:45]} 40. Ke2 {[%emt 0:01:13]} Kg7 {[%emt 0:00:47]} 41. Kf2 {[%emt 0:01:38]} Kg8 {[%emt 0:00:13]} 42. Kf1 {[%emt 0:00:54]} Kf8 {[%emt 0:00:31]} 43. Ke1 {[%emt 0:00:35]} Kg8 {[%emt 0:01:39]} 44. Ke2 {[%emt 0:00:08]} Kg7 {[%emt 0:00:02]} 45. Kf2 {[%emt 0:00:35]} 1/2-1/2

[Event "9th RTU Open 2019"]
[Site "Riga"]
[Date "2019.08.09"]
[Round "8.15"]
[White "Gukesh D"]
[Black "Galchenko, Matvey"]
[Result "1-0"]
[ECO "E33"]
[WhiteElo "2520"]
[BlackElo "2383"]
[Annotator "ChessBase"]
[PlyCount "91"]
[EventDate "2019.08.05"]
[EventType "swiss"]
[EventCountry "LAT"]
[SourceTitle "playchess.com"]
[Source "ChessBase"]
[SourceQuality "1"]
[TimeControl "5400+30"]

1. d4 {[%emt 0:00:00]} Nf6 {[%emt 0:00:05]} 2. c4 {[%emt 0:00:00]} Nc6 {[%emt 0:01:15]} 3. Nf3 {[%emt 0:06:00]} e6 {[%emt 0:00:21]} 4. Nc3 {[%emt 0:11:48]} Bb4 {[%emt 0:00:29]} 5. Qc2 {[%emt 0:01:41]} d6 {[%emt 0:04:37]} 6. a3 {[%emt 0:07:09]} Bxc3+ {[%emt 0:00:10]} 7. Qxc3 {[%emt 0:00:07]} a5 {[%emt 0:01:07]} 8. d5 {[%emt 0:11:26]} Nb8 {[%emt 0:08:09]} 9. dxe6 {[%emt 0:02:18]} Bxe6 {[%emt 0:01:09]} 10. b3 {[%emt 0:04:41]} O-O {[%emt 0:01:25]} 11. Bb2 {[%emt 0:00:04]} Nbd7 {[%emt 0:01:13]} 12. Nd4 {[%emt 0:04:49]} Nc5 {[%emt 0:06:53]} 13. f3 {[%emt 0:01:04]} c6 {[%emt 0:10:43]} 14. g4 {[%emt 0:12:19]} Bd7 {[%emt 0:05:52]} 15. h4 {[%emt 0:12:01]} h5 {[%emt 0:13:59]} 16. g5 {[%emt 0:04:55]} Ne8 {[%emt 0:01:48]} 17. e4 {[%emt 0:02:00]} Qb8 {[%emt 0:05:19]} 18. O-O-O {[%emt 0:09:57]} b5 {[%emt 0:03:44]} 19. Qc2 {[%emt 0:00:44]} Qb6 {[%emt 0:02:36]} 20. g6 {[%emt 0:01:37]} fxg6 {[%emt 0:05:22]} 21. Rg1 {[%emt 0:01:41]} Ne6 {[%emt 0:04:33]} 22. Rxg6 {[%emt 0:01:03]} Nf4 {[%emt 0:00:27]} 23. Rg5 {[%emt 0:00:41]} Rc8 {[%emt 0:05:18]} 24. c5 {[%emt 0:02:39]} dxc5 {[%emt 0:00:43]} 25. Nxb5 {[%emt 0:00:22]} cxb5 {[%emt 0:03:41]} 26. Rxd7 {[%emt 0:00:06]} Ne6 {[%emt 0:00:05]} 27. Rg6 {[%emt 0:01:12]} c4 {[%emt 0:01:02]} 28. Qc3 {[%emt 0:00:58]} Nf6 {[%emt 0:06:14]} 29. bxc4 {[%emt 0:00:33]} b4 {[%emt 0:00:50]} 30. axb4 {[%emt 0:00:09]} axb4 {[%emt 0:00:01]} 31. Qe5 {[%emt 0:00:18]} Qe3+ {[%emt 0:01:13]} 32. Rd2 {[%emt 0:00:01]} Nc5 {[%emt 0:00:29]} 33. Kd1 {[%emt 0:00:40]} Rcd8 {[%emt 0:01:20]} 34. Bd4 {[%emt 0:01:13]} Qxf3+ {[%emt 0:00:15]} 35. Be2 {[%emt 0:00:01]} Qb3+ {[%emt 0:02:01]} 36. Kc1 {[%emt 0:00:47]} Ncxe4 {[%emt 0:00:15]} 37. Rb2 {[%emt 0:00:43]} Qh3 {[%emt 0:00:52]} 38. Qe7 {[%emt 0:00:38]} Rf7 {[%emt 0:02:02]} 39. Qxd8+ {[%emt 0:00:05]} Kh7 {[%emt 0:00:01]} 40. Rg1 {[%emt 0:00:29]} Rd7 {[%emt 0:00:04]} 41. Qb6 {[%emt 0:00:21]} Nc3 {[%emt 0:00:20]} 42. Bxf6 {[%emt 0:00:56]} gxf6 {[%emt 0:00:29]} 43. Qf2 {[%emt 0:00:17]} Na4 {[%emt 0:01:20]} 44. Bf3 {[%emt 0:00:40]} Qf5 {[%emt 0:00:31]} 45. Bd1 {[%emt 0:00:36]} Rxd1+ {[%emt 0:00:42]} 46. Rxd1 {[%emt 0:00:12]} 1-0

[Event "9th RTU Open 2019"]
[Site "Riga"]
[Date "2019.08.09"]
[Round "8.16"]
[White "Low, Zhen Yu Cyrus"]
[Black "Thybo, Jesper Sondergaard"]
[Result "0-1"]
[ECO "B69"]
[WhiteElo "2413"]
[BlackElo "2528"]
[Annotator "ChessBase"]
[PlyCount "88"]
[EventDate "2019.08.05"]
[EventType "swiss"]
[EventCountry "LAT"]
[SourceTitle "playchess.com"]
[Source "ChessBase"]
[SourceQuality "1"]
[TimeControl "5400+30"]

1. e4 {[%emt 0:00:00]} c5 {[%emt 0:00:00]} 2. Nf3 {[%emt 0:00:00]} d6 {[%emt 0:00:00]} 3. d4 {[%emt 0:00:00]} cxd4 {[%emt 0:00:00]} 4. Nxd4 {[%emt 0:00:00]} Nf6 {[%emt 0:00:00]} 5. Nc3 {[%emt 0:00:00]} Nc6 {[%emt 0:00:00]} 6. Bg5 {[%emt 0:00:01]} e6 {[%emt 0:00:02]} 7. Qd2 {[%emt 0:00:06]} a6 {[%emt 0:00:06]} 8. O-O-O {[%emt 0:00:35]} Bd7 {[%emt 0:00:07]} 9. f4 {[%emt 0:00:08]} Be7 {[%emt 0:00:16]} 10. Nf3 {[%emt 0:00:12]} b5 {[%emt 0:00:13]} 11. Bxf6 {[%emt 0:00:44]} gxf6 {[%emt 0:00:16]} 12. Kb1 {[%emt 0:00:06]} Qb6 {[%emt 0:00:19]} 13. f5 {[%emt 0:00:17]} O-O-O {[%emt 0:00:24]} 14. g3 {[%emt 0:00:08]} Kb8 {[%emt 0:00:12]} 15. fxe6 {[%emt 0:00:07]} fxe6 {[%emt 0:00:04]} 16. Bh3 {[%emt 0:00:06]} Na5 {[%emt 0:00:20]} 17. Qd3 {[%emt 0:05:02]} b4 {[%emt 0:00:41]} 18. Ne2 {[%emt 0:00:08]} Bb5 {[%emt 0:00:13]} 19. Qd4 {[%emt 0:00:13]} Qc7 {[%emt 0:00:16]} 20. Qf2 {[%emt 0:11:32]} e5 {[%emt 0:05:20]} 21. Be6 {[%emt 0:02:55]} Qc5 {[%emt 0:05:03]} 22. Rhf1 {[%emt 0:05:54]} Nc4 {[%emt 0:02:24]} 23. Rd5 {[%emt 0:13:05]} Qxf2 {[%emt 0:14:19]} 24. Rxf2 {[%emt 0:01:20]} Nb6 {[%emt 0:00:16]} 25. Rd1 {[%emt 0:01:40]} d5 {[%emt 0:00:38]} 26. exd5 {[%emt 0:12:07]} Bc5 {[%emt 0:01:00]} 27. Rg2 {[%emt 0:00:07]} Nc4 {[%emt 0:11:41]} 28. Re1 {[%emt 0:00:08]} Ne3 {[%emt 0:00:20]} 29. Rgg1 {[%emt 0:00:08]} Nxd5 {[%emt 0:00:14]} 30. Rgf1 {[%emt 0:02:15]} Ne3 {[%emt 0:02:05]} 31. Rg1 {[%emt 0:00:09]} e4 {[%emt 0:05:00]} 32. Nh4 {[%emt 0:05:22]} Rd2 {[%emt 0:00:42]} 33. Nf4 {[%emt 0:00:12]} Nxc2 {[%emt 0:00:27]} 34. Rd1 {[%emt 0:00:08]} Rxh2 {[%emt 0:01:04]} 35. Rg2 {[%emt 0:04:11]} Rxg2 {[%emt 0:02:00]} 36. Nhxg2 {[%emt 0:00:07]} Nd4 {[%emt 0:00:07]} 37. Bd5 {[%emt 0:00:10]} Re8 {[%emt 0:01:38]} 38. Ne3 {[%emt 0:06:15]} Ne2 {[%emt 0:01:33]} 39. Nxe2 {[%emt 0:03:38]} Bxe3 {[%emt 0:02:56]} 40. Nf4 {[%emt 0:00:07]} Bxf4 {[%emt 0:01:24]} 41. gxf4 {[%emt 0:00:07]} Rd8 {[%emt 0:00:16]} 42. Kc1 {[%emt 0:00:20]} e3 {[%emt 0:00:36]} 43. Bf3 {[%emt 0:00:53]} Rxd1+ {[%emt 0:00:07]} 44. Kxd1 {[%emt 0:00:06]} Kc7 {[%emt 0:00:38]} 0-1

[Event "9th RTU Open 2019"]
[Site "Riga"]
[Date "2019.08.09"]
[Round "8.17"]
[White "Vishnu Prasanna. V"]
[Black "Kruglyakov, Pavlo"]
[Result "1-0"]
[ECO "B84"]
[WhiteElo "2507"]
[BlackElo "2347"]
[Annotator "ChessBase"]
[PlyCount "113"]
[EventDate "2019.08.05"]
[EventType "swiss"]
[EventCountry "LAT"]
[SourceTitle "playchess.com"]
[Source "ChessBase"]
[SourceQuality "1"]
[TimeControl "5400+30"]

1. e4 {[%emt 0:00:00]} c5 {[%emt 0:00:00]} 2. Nf3 {[%emt 0:00:00]} d6 {[%emt 0:00:00]} 3. Nc3 {[%emt 0:00:00]} Nf6 {[%emt 0:00:00]} 4. d4 {[%emt 0:00:15]} cxd4 {[%emt 0:00:00]} 5. Nxd4 {[%emt 0:00:03]} a6 {[%emt 0:00:00]} 6. Be3 {[%emt 0:00:08]} e6 {[%emt 0:00:51]} 7. Be2 {[%emt 0:01:16]} Be7 {[%emt 0:00:47]} 8. g4 {[%emt 0:00:27]} Qc7 {[%emt 0:09:05]} 9. g5 {[%emt 0:01:19]} Nfd7 {[%emt 0:00:01]} 10. Qd2 {[%emt 0:00:22]} b5 {[%emt 0:00:59]} 11. a3 {[%emt 0:01:33]} Bb7 {[%emt 0:00:47]} 12. f4 {[%emt 0:02:21]} Nc5 {[%emt 0:07:46]} 13. Bf3 {[%emt 0:02:16]} Nc6 {[%emt 0:07:28]} 14. Nxc6 {[%emt 0:07:40]} Bxc6 {[%emt 0:01:10]} 15. O-O {[%emt 0:02:22]} Qb7 {[%emt 0:06:25]} 16. Nd5 {[%emt 0:07:32]} Bd8 {[%emt 0:15:51]} 17. f5 {[%emt 0:12:02]} Nxe4 {[%emt 0:12:58]} 18. Bxe4 {[%emt 0:00:52]} exd5 {[%emt 0:00:12]} 19. Bd3 {[%emt 0:00:55]} Bb6 {[%emt 0:02:00]} 20. Qf2 {[%emt 0:02:21]} Bxe3 {[%emt 0:09:24]} 21. Qxe3+ {[%emt 0:00:18]} Qe7 22. Qxe7+ {[%emt 0:00:36]} Kxe7 {[%emt 0:00:01]} 23. f6+ {[%emt 0:00:17]} Kf8 {[%emt 0:02:51]} 24. fxg7+ {[%emt 0:01:50]} Kxg7 {[%emt 0:00:01]} 25. Rf6 {[%emt 0:00:09]} h6 {[%emt 0:06:48]} 26. Rxd6 {[%emt 0:01:46]} Rac8 {[%emt 0:00:34]} 27. Bf5 {[%emt 0:03:29]} Rc7 {[%emt 0:00:27]} 28. g6 {[%emt 0:00:25]} h5 {[%emt 0:09:42]} 29. gxf7 {[%emt 0:02:44]} Rxf7 {[%emt 0:02:48]} 30. Rg6+ {[%emt 0:06:20]} Kh7 {[%emt 0:00:17]} 31. Bd3 {[%emt 0:11:01]} Rg7 {[%emt 0:02:09]} 32. Rg3+ {[%emt 0:03:08]} Kh6 {[%emt 0:01:45]} 33. Re1 {[%emt 0:01:06]} Re8 {[%emt 0:02:16]} 34. Rf1 {[%emt 0:03:51]} Rxg3+ {[%emt 0:00:53]} 35. hxg3 {[%emt 0:00:15]} Re6 {[%emt 0:00:31]} 36. Rf5 {[%emt 0:00:55]} d4 {[%emt 0:00:17]} 37. Kf2 {[%emt 0:00:13]} Rd6 {[%emt 0:00:33]} 38. Re5 {[%emt 0:01:52]} Bd5 {[%emt 0:00:49]} 39. b3 {[%emt 0:08:56]} Bf7 {[%emt 0:00:16]} 40. a4 {[%emt 0:00:46]} bxa4 {[%emt 0:00:09]} 41. bxa4 {[%emt 0:00:12]} Bg6 {[%emt 0:00:18]} 42. Ra5 {[%emt 0:00:34]} Bxd3 {[%emt 0:00:54]} 43. cxd3 {[%emt 0:00:05]} Rf6+ {[%emt 0:00:22]} 44. Kg2 {[%emt 0:00:06]} Rd6 {[%emt 0:00:58]} 45. Kh3 {[%emt 0:00:09]} Rb6 {[%emt 0:00:33]} 46. Rd5 {[%emt 0:00:19]} Rb4 {[%emt 0:00:19]} 47. a5 {[%emt 0:00:12]} Ra4 {[%emt 0:00:27]} 48. Rd6+ {[%emt 0:02:45]} Kg5 {[%emt 0:00:07]} 49. Rxa6 {[%emt 0:00:14]} Ra3 {[%emt 0:00:01]} 50. Ra8 {[%emt 0:00:09]} h4 {[%emt 0:01:34]} 51. a6 {[%emt 0:00:34]} Kh6 {[%emt 0:00:33]} 52. a7 {[%emt 0:00:26]} Kg7 {[%emt 0:00:06]} 53. Kxh4 {[%emt 0:00:06]} Ra5 {[%emt 0:00:45]} 54. Kg4 {[%emt 0:00:06]} Ra4 {[%emt 0:00:18]} 55. Kf5 {[%emt 0:00:10]} Ra5+ {[%emt 0:00:10]} 56. Ke4 {[%emt 0:00:06]} Ra4 {[%emt 0:00:02]} 57. Kd5 {[%emt 0:00:13]} 1-0

[Event "9th RTU Open 2019"]
[Site "Riga"]
[Date "2019.08.09"]
[Round "8.18"]
[White "Grigorov, Grigor"]
[Black "Dordzhieva, Dinara"]
[Result "1-0"]
[ECO "E04"]
[WhiteElo "2501"]
[BlackElo "2319"]
[Annotator "ChessBase"]
[PlyCount "81"]
[EventDate "2019.08.05"]
[EventType "swiss"]
[EventCountry "LAT"]
[SourceTitle "playchess.com"]
[Source "ChessBase"]
[SourceQuality "1"]
[TimeControl "5400+30"]

1. d4 {[%emt 0:00:02]} Nf6 {[%emt 0:00:00]} 2. c4 {[%emt 0:00:25]} e6 {[%emt 0:00:00]} 3. Nf3 {[%emt 0:00:11]} d5 {[%emt 0:00:01]} 4. g3 {[%emt 0:00:12]} c6 {[%emt 0:00:41]} 5. Bg2 {[%emt 0:00:12]} dxc4 {[%emt 0:00:19]} 6. Ne5 {[%emt 0:00:16]} b5 {[%emt 0:00:12]} 7. Nxc6 {[%emt 0:01:44]} Qb6 {[%emt 0:00:04]} 8. Na5 {[%emt 0:00:54]} Nd5 {[%emt 0:01:17]} 9. Bd2 {[%emt 0:02:05]} Nd7 {[%emt 0:11:10]} 10. Nc3 {[%emt 0:23:59]} N7f6 {[%emt 0:04:32]} 11. a4 {[%emt 0:09:21]} b4 {[%emt 0:20:48]} 12. Nxd5 {[%emt 0:08:47]} Nxd5 {[%emt 0:03:12]} 13. Nxc4 {[%emt 0:00:08]} Qxd4 {[%emt 0:00:09]} 14. Qb3 {[%emt 0:03:46]} Be7 {[%emt 0:13:14]} 15. Rd1 {[%emt 0:09:13]} Ba6 {[%emt 0:05:29]} 16. Ne3 {[%emt 0:00:17]} O-O {[%emt 0:07:20]} 17. Bc1 {[%emt 0:10:07]} Qe5 {[%emt 0:02:58]} 18. Bxd5 {[%emt 0:03:06]} exd5 {[%emt 0:00:21]} 19. Qxd5 {[%emt 0:00:43]} Qc7 {[%emt 0:07:58]} 20. Qd7 {[%emt 0:01:21]} Qc5 {[%emt 0:00:11]} 21. Nd5 {[%emt 0:02:39]} Rfe8 {[%emt 0:05:12]} 22. Be3 {[%emt 0:01:01]} Qc4 {[%emt 0:03:11]} 23. O-O {[%emt 0:00:18]} Bf8 {[%emt 0:00:18]} 24. Rd2 {[%emt 0:03:45]} Red8 {[%emt 0:06:18]} 25. Qf5 {[%emt 0:00:25]} Bb7 {[%emt 0:03:34]} 26. Rfd1 {[%emt 0:00:45]} Rd6 {[%emt 0:01:54]} 27. Bf4 {[%emt 0:03:03]} Rxd5 {[%emt 0:02:15]} 28. Rxd5 {[%emt 0:00:07]} Bxd5 {[%emt 0:00:17]} 29. Rxd5 {[%emt 0:01:30]} Qxe2 {[%emt 0:00:16]} 30. Rd7 {[%emt 0:00:15]} Qxb2 {[%emt 0:01:11]} 31. Qxf7+ {[%emt 0:00:42]} Kh8 {[%emt 0:00:01]} 32. Qd5 {[%emt 0:05:30]} Rc8 {[%emt 0:00:29]} 33. Be5 {[%emt 0:00:19]} Qc1+ {[%emt 0:01:01]} 34. Kg2 {[%emt 0:00:06]} Qh6 {[%emt 0:00:34]} 35. Rxa7 {[%emt 0:00:18]} Re8 {[%emt 0:00:30]} 36. Bd4 {[%emt 0:00:44]} Qg6 {[%emt 0:00:27]} 37. a5 {[%emt 0:00:36]} h6 {[%emt 0:00:27]} 38. Ra8 {[%emt 0:00:48]} Kh7 {[%emt 0:00:34]} 39. Rxe8 {[%emt 0:00:11]} Qxe8 {[%emt 0:00:02]} 40. a6 {[%emt 0:00:11]} b3 {[%emt 0:00:55]} 41. a7 {[%emt 0:00:16]} 1-0

[Event "9th RTU Open 2019"]
[Site "Riga"]
[Date "2019.08.09"]
[Round "8.19"]
[White "Stremavicius, Titas"]
[Black "Shailesh, Dravid"]
[Result "1/2-1/2"]
[ECO "E11"]
[WhiteElo "2490"]
[BlackElo "2254"]
[Annotator "ChessBase"]
[PlyCount "138"]
[EventDate "2019.08.05"]
[EventType "swiss"]
[EventCountry "LAT"]
[SourceTitle "playchess.com"]
[Source "ChessBase"]
[SourceQuality "1"]
[TimeControl "5400+30"]

1. d4 {[%emt 0:00:00]} Nf6 {[%emt 0:04:11]} 2. c4 {[%emt 0:00:00]} Nc6 {[%emt 0:00:08]} 3. Nf3 {[%emt 0:00:58]} e6 {[%emt 0:00:04]} 4. g3 {[%emt 0:04:51]} Bb4+ {[%emt 0:00:21]} 5. Bd2 {[%emt 0:01:29]} Qe7 {[%emt 0:00:05]} 6. Bg2 {[%emt 0:01:50]} Bxd2+ {[%emt 0:00:54]} 7. Nbxd2 {[%emt 0:00:07]} d6 {[%emt 0:00:10]} 8. O-O {[%emt 0:04:06]} O-O {[%emt 0:00:05]} 9. e4 {[%emt 0:00:50]} e5 {[%emt 0:00:05]} 10. d5 {[%emt 0:00:04]} Nb8 {[%emt 0:00:03]} 11. Ne1 {[%emt 0:00:06]} a5 {[%emt 0:00:05]} 12. Nd3 {[%emt 0:01:06]} Na6 {[%emt 0:00:37]} 13. Re1 {[%emt 0:06:14]} Nd7 {[%emt 0:02:33]} 14. a3 {[%emt 0:11:25]} Ndc5 {[%emt 0:03:18]} 15. Nxc5 {[%emt 0:00:19]} Nxc5 {[%emt 0:00:07]} 16. b4 {[%emt 0:00:11]} axb4 {[%emt 0:10:40]} 17. axb4 {[%emt 0:00:02]} Rxa1 {[%emt 0:01:37]} 18. Qxa1 {[%emt 0:00:02]} Nd3 {[%emt 0:02:08]} 19. Rb1 {[%emt 0:00:07]} Qf6 {[%emt 0:00:56]} 20. Nf3 {[%emt 0:10:56]} Bg4 {[%emt 0:02:40]} 21. Qc3 {[%emt 0:01:16]} Bxf3 {[%emt 0:00:17]} 22. Qxd3 {[%emt 0:00:06]} Bxg2 {[%emt 0:00:07]} 23. Kxg2 {[%emt 0:00:05]} Ra8 {[%emt 0:00:25]} 24. Rb2 {[%emt 0:02:17]} Qg5 {[%emt 0:06:00]} 25. Rc2 {[%emt 0:04:06]} h5 {[%emt 0:02:55]} 26. c5 {[%emt 0:07:53]} h4 {[%emt 0:01:15]} 27. cxd6 {[%emt 0:02:30]} cxd6 {[%emt 0:01:33]} 28. Qf3 {[%emt 0:04:33]} Qh6 {[%emt 0:05:47]} 29. Qg4 {[%emt 0:03:51]} hxg3 {[%emt 0:08:47]} 30. hxg3 {[%emt 0:04:25]} g6 {[%emt 0:22:43]} 31. Rc8+ {[%emt 0:02:08]} Rxc8 {[%emt 0:01:37]} 32. Qxc8+ {[%emt 0:00:03]} Kg7 {[%emt 0:00:05]} 33. Qxb7 {[%emt 0:02:22]} Qd2 {[%emt 0:00:04]} 34. Qb6 {[%emt 0:00:16]} Qe1 {[%emt 0:00:12]} 35. Qxd6 {[%emt 0:00:27]} Qxe4+ {[%emt 0:00:04]} 36. Kh2 {[%emt 0:00:39]} g5 {[%emt 0:12:33]} 37. Qc5 {[%emt 0:01:42]} Qh7+ {[%emt 0:01:10]} 38. Kg2 {[%emt 0:00:18]} Qe4+ {[%emt 0:00:05]} 39. Kf1 {[%emt 0:01:13]} g4 {[%emt 0:02:49]} 40. Qe3 {[%emt 0:09:12]} Qh1+ {[%emt 0:03:11]} 41. Ke2 {[%emt 0:00:01]} Qxd5 {[%emt 0:00:13]} 42. Qg5+ {[%emt 0:00:12]} Kf8 {[%emt 0:00:37]} 43. Qxg4 {[%emt 0:00:09]} e4 {[%emt 0:00:18]} 44. Qc8+ {[%emt 0:01:17]} Kg7 {[%emt 0:00:01]} 45. Qc3+ {[%emt 0:00:25]} Kg6 {[%emt 0:00:17]} 46. Ke3 {[%emt 0:03:22]} f5 {[%emt 0:02:33]} 47. Qd4 {[%emt 0:00:41]} Qc6 {[%emt 0:01:20]} 48. Qc5 {[%emt 0:01:12]} Qe6 {[%emt 0:00:58]} 49. Ke2 {[%emt 0:07:06]} Qd7 {[%emt 0:01:02]} 50. b5 {[%emt 0:02:53]} Qd3+ {[%emt 0:01:04]} 51. Ke1 {[%emt 0:00:01]} Kf6 {[%emt 0:01:08]} 52. Qb4 {[%emt 0:03:02]} e3 {[%emt 0:01:27]} 53. Qb2+ {[%emt 0:01:27]} Kg6 {[%emt 0:01:11]} 54. b6 {[%emt 0:00:09]} e2 {[%emt 0:00:42]} 55. Qxe2 {[%emt 0:00:55]} Qb1+ {[%emt 0:00:04]} 56. Qd1 {[%emt 0:00:18]} Qxb6 {[%emt 0:00:14]} 57. Kf1 {[%emt 0:00:40]} Qc6 {[%emt 0:00:07]} 58. Kg1 {[%emt 0:00:06]} Qe4 {[%emt 0:00:11]} 59. Kh2 {[%emt 0:00:43]} Kg5 {[%emt 0:00:56]} 60. f4+ {[%emt 0:00:35]} Kg6 {[%emt 0:00:36]} 61. Kh3 {[%emt 0:00:25]} Kh6 {[%emt 0:00:24]} 62. Qa1 {[%emt 0:00:34]} Kg6 {[%emt 0:00:22]} 63. Qa6+ {[%emt 0:00:37]} Kh5 {[%emt 0:00:09]} 64. Qf1 {[%emt 0:00:09]} Kg6 {[%emt 0:00:36]} 65. Qa1 {[%emt 0:00:29]} Qe2 {[%emt 0:00:35]} 66. Qa7 {[%emt 0:00:51]} Qf1+ {[%emt 0:00:19]} 67. Kh2 {[%emt 0:00:01]} Qe2+ {[%emt 0:00:09]} 68. Kg1 {[%emt 0:00:01]} Qe1+ {[%emt 0:00:12]} 69. Kg2 {[%emt 0:00:05]} Qe4+ {[%emt 0:00:05]} 1/2-1/2

[Event "9th RTU Open 2019"]
[Site "Riga"]
[Date "2019.08.09"]
[Round "8.20"]
[White "Sowray, Peter J"]
[Black "Zanan, Evgeny"]
[Result "0-1"]
[ECO "E76"]
[WhiteElo "2332"]
[BlackElo "2486"]
[Annotator "ChessBase"]
[PlyCount "44"]
[EventDate "2019.08.05"]
[EventType "swiss"]
[EventCountry "LAT"]
[SourceTitle "playchess.com"]
[Source "ChessBase"]
[SourceQuality "1"]
[TimeControl "5400+30"]

1. d4 {[%emt 0:00:00]} Nf6 {[%emt 0:06:57]} 2. c4 {[%emt 0:00:00]} g6 {[%emt 0:00:16]} 3. Nc3 {[%emt 0:00:00]} Bg7 {[%emt 0:00:05]} 4. e4 {[%emt 0:00:08]} d6 {[%emt 0:00:03]} 5. f4 {[%emt 0:00:09]} O-O {[%emt 0:00:13]} 6. Nf3 {[%emt 0:00:16]} c5 {[%emt 0:00:04]} 7. d5 {[%emt 0:00:26]} e6 {[%emt 0:00:05]} 8. dxe6 {[%emt 0:00:11]} Bxe6 {[%emt 0:04:07]} 9. Bd3 {[%emt 0:02:31]} Nc6 {[%emt 0:12:56]} 10. O-O {[%emt 0:04:07]} Na5 {[%emt 0:15:28]} 11. Qe2 {[%emt 0:12:51]} Re8 {[%emt 0:01:22]} 12. Ng5 {[%emt 0:12:02]} Bg4 {[%emt 0:03:44]} 13. Qf2 {[%emt 0:10:04]} h6 {[%emt 0:07:26]} 14. f5 {[%emt 0:11:05]} Nc6 {[%emt 0:15:35]} 15. Qh4 {[%emt 0:09:48]} Ne5 {[%emt 0:05:40]} 16. Nd5 {[%emt 0:12:43]} Nxd5 {[%emt 0:07:34]} 17. exd5 {[%emt 0:04:06]} Nxd3 {[%emt 0:02:31]} 18. f6 {[%emt 0:00:41]} Nxc1 {[%emt 0:05:39]} 19. Nxf7 {[%emt 0:03:08]} Kxf7 {[%emt 0:00:44]} 20. fxg7+ {[%emt 0:03:00]} Kxg7 {[%emt 0:00:09]} 21. Qxg4 {[%emt 0:00:10]} Nd3 {[%emt 0:01:15]} 22. b4 {[%emt 0:01:39]} Ne5 {[%emt 0:00:45]} 0-1

[Event "9th RTU Open 2019"]
[Site "Riga"]
[Date "2019.08.09"]
[Round "8.23"]
[White "Berzinsh, Roland"]
[Black "Handke, Florian"]
[Result "1-0"]
[ECO "B07"]
[WhiteElo "2386"]
[BlackElo "2544"]
[Annotator "ChessBase"]
[PlyCount "65"]
[EventDate "2019.08.05"]
[EventType "swiss"]
[EventCountry "LAT"]
[SourceTitle "playchess.com"]
[Source "ChessBase"]
[SourceQuality "1"]
[TimeControl "5400+30"]

1. e4 {[%emt 0:02:31]} d6 {[%emt 0:00:00]} 2. d4 {[%emt 0:00:39]} Nf6 {[%emt 0:00:00]} 3. Nc3 {[%emt 0:00:10]} g6 {[%emt 0:00:00]} 4. Be3 {[%emt 0:00:29]} c6 {[%emt 0:00:00]} 5. h3 {[%emt 0:01:51]} Nbd7 {[%emt 0:01:31]} 6. f4 {[%emt 0:04:19]} b5 {[%emt 0:00:51]} 7. a3 {[%emt 0:00:14]} Nb6 {[%emt 0:00:13]} 8. Nf3 {[%emt 0:00:10]} Bg7 {[%emt 0:00:58]} 9. Bd3 {[%emt 0:00:31]} O-O {[%emt 0:00:23]} 10. O-O {[%emt 0:00:21]} Nc4 {[%emt 0:06:14]} 11. Bxc4 {[%emt 0:09:15]} bxc4 {[%emt 0:00:03]} 12. d5 {[%emt 0:00:10]} cxd5 {[%emt 0:10:50]} 13. exd5 {[%emt 0:00:22]} Qa5 {[%emt 0:03:22]} 14. Rf2 {[%emt 0:08:40]} Rb8 {[%emt 0:02:11]} 15. Rb1 {[%emt 0:00:05]} Bb7 {[%emt 0:20:41]} 16. Rd2 {[%emt 0:00:48]} Rfe8 {[%emt 0:04:27]} 17. Bf2 {[%emt 0:12:37]} Ba8 {[%emt 0:01:23]} 18. Kh2 {[%emt 0:10:11]} Nh5 {[%emt 0:07:22]} 19. Bd4 {[%emt 0:03:36]} Nf6 {[%emt 0:04:55]} 20. Bf2 {[%emt 0:03:24]} Rxb2 {[%emt 0:10:18]} 21. Rxb2 {[%emt 0:00:49]} Qxc3 {[%emt 0:00:05]} 22. Rb4 {[%emt 0:07:20]} Ne4 {[%emt 0:04:08]} 23. Re2 {[%emt 0:01:44]} Nxf2 {[%emt 0:04:28]} 24. Rxf2 {[%emt 0:00:05]} a5 {[%emt 0:02:00]} 25. Rb5 {[%emt 0:00:24]} Qxa3 {[%emt 0:00:22]} 26. Qe1 {[%emt 0:03:43]} a4 {[%emt 0:03:18]} 27. Re2 {[%emt 0:00:45]} Bf6 {[%emt 0:02:09]} 28. Ng5 {[%emt 0:02:09]} Rf8 {[%emt 0:03:20]} 29. Rxe7 {[%emt 0:00:37]} Bxe7 {[%emt 0:01:43]} 30. Qxe7 {[%emt 0:00:16]} Qc1 {[%emt 0:03:50]} 31. Qf6 {[%emt 0:03:56]} Bxd5 {[%emt 0:02:36]} 32. Rxd5 {[%emt 0:00:14]} Qxc2 {[%emt 0:00:37]} 33. Ra5 {[%emt 0:02:05]} 1-0